Cogmind - Beta 15 @@@ ROGUE MODE // 2025.05.09 @ 16:36:44 Player: Anting Result: Destroyed by G0-DM3(R) with Subdweller Beam Cannon Performance ------------- Evolutions (0) 0 Regions Visited (2) 400 Robots Destroyed (31) 155 Value Destroyed (961) 961 Prototype IDs (0) 0 Alien Tech Used (0) 0 Bonus (0) 0 TOTAL SCORE: 1516 Bonus ------- None Cogmind --------- Core Integrity 0/250 Matter 288/300 Energy 67/100 System Corruption 0% Temperature Cool (9) Movement Treading (560) Ox5 Location -10/Subcaves Parts ------- > --- POWER (1) -------- Subdweller Power Source > --- PROPULSION (2) --- Light Treads Light Treads > --- UTILITY (2) ------ Humpback > --- WEAPON (2) ------- Subdweller Beam Cannon Slug Cannon > --- INVENTORY (35) --- Subdweller Power Source Subdweller Power Source Subdweller Power Source Spiked Treads Aluminum Leg Aluminum Leg Subdweller Monowheel Subdweller Monowheel Disposable Heat Sink Disposable Heat Sink Disposable Heat Sink Small Storage Unit High-capacity Storage Unit Subdweller Optics Makeshift Light Armor Plating Scrap Shield Scrap Shield EM Pulse Gun EM Pulse Gun Riot Gun Subdweller Laser Subdweller Laser Subdweller Laser Subdweller Laser Subdweller Laser Subdweller Beam Cannon Subdweller Machine Gun Grenade Launcher Makeshift Spear Scrap Shield Fragment (45) Scrap Shield Fragment (39) Scrap Shield Fragment (39) Scrap Shield Fragment (23) Peak State ------------ > --- POWER ------------ Subdweller Power Source > --- PROPULSION ------- Light Treads Light Treads > --- UTILITY ---------- Humpback > --- WEAPON ----------- Subdweller Beam Cannon Slug Cannon > --- INVENTORY -------- Subdweller Power Source Subdweller Power Source Subdweller Power Source Spiked Treads Aluminum Leg Aluminum Leg Subdweller Monowheel Subdweller Monowheel Disposable Heat Sink Disposable Heat Sink Disposable Heat Sink Small Storage Unit High-capacity Storage Unit Subdweller Optics Makeshift Light Armor Plating Scrap Shield EM Pulse Gun EM Pulse Gun Riot Gun Subdweller Laser Subdweller Laser Subdweller Laser Subdweller Laser Subdweller Laser Subdweller Beam Cannon Grenade Launcher Scrap Shield Fragment Scrap Shield Fragment Scrap Shield Fragment Scrap Shield Fragment Scrap Shield Fragment Scrap Shield Fragment Scrap Shield Fragment [Rating: 18] Favorites ----------- Power Subdweller Power Source Engine Subdweller Power Source Propulsion Light Treads Treads Light Treads Utility Humpback Device Improved Heat Sink Storage Humpback Weapon Light Assault Rifle Energy Gun Small Laser Energy Cannon Subdweller Beam Cannon Ballistic Gun Light Assault Rifle Ballistic Cannon Slug Cannon Launcher Grenade Launcher Build | -11 -10 -10 ------- Run | Yrd Mat Sub Slots Evolved . | . . . Power . | . . . Propulsion . | . . . Utility . | . . . Weapon . | . . . Parts Attached 17 | 6 3 8 Power 3 | 1 1 1 Engine 3 | 1 1 1 Core . | . . . Reactor . | . . . Propulsion 4 | 2 . 2 Treads 4 | 2 . 2 Leg . | . . . Wheel . | . . . Hover . | . . . Flight . | . . . Utility 4 | 1 1 2 Device 1 | . 1 . Storage 3 | 1 . 2 Processor . | . . . Hackware . | . . . Protection . | . . . Artifact . | . . . Weapon 6 | 2 1 3 Energy Gun 1 | 1 . . Energy Cannon 1 | . . 1 Ballistic Gun 2 | 1 . 1 Ballistic Cannon 1 | . . 1 Launcher 1 | . 1 . Special Weapon . | . . . Impact Weapon . | . . . Slashing Weapon . | . . . Piercing Weapon . | . . . Special Melee Weapon . | . . . Unidentified Prototypes . | . . . Parts Lost 7 | . 1 6 Power 2 | . 1 1 Propulsion 2 | . . 2 Utility 1 | . . 1 Weapon 2 | . . 2 Highest Loss Streak 2 | . 1 2 To Critical Strikes . | . . . Average Backups 22 | 2 6 24 Power 2 | . . 2 Propulsion 5 | 1 3 6 Utility 6 | . . 6 Weapon 8 | . 2 8 Tool/Special . | . . . Unused Backups 29 | . . 29 Power 3 | . . 3 Propulsion 8 | . . 8 Utility 7 | . . 7 Weapon 11 | . . 11 Tool/Special . | . . . Average Slot Usage (%) 85 | . 87 85 Engine 13 | . 13 14 Treads 27 | . 28 27 Storage 13 | . 14 13 Energy Gun 7 | . 12 7 Energy Cannon 5 | . . 6 Ballistic Gun 12 | . 14 12 Ballistic Cannon 1 | . . 1 Peak Build Rating 18 | 6 9 18 Average Rating 13 | 4 6 14 On Entrance 5 | . 6 9 Naked Turns . | . . . Heaviest Build 220 | 12 15 220 Greatest Support 40 | 40 40 40 Greatest Overweight (x) 5 | 1 . 5 Average Overweight (x) 3 | . . 4 Largest Inventory Capacity 35 | 8 8 35 Average Capacity 30 | 7 8 34 Most Carried 35 | 4 8 35 Average Carried 28 | 2 6 31 Final Capacity 35 | 8 8 35 Final Carried 35 | 4 8 35 Class Distribution -------------------- 82% | Hauler-Mutant 17% | Mutant Dominant Class ---------------- Mutant | -10/Materials Hauler-Mutant | -10/Subcaves Resources | -11 -10 -10 ----------- Run | Yrd Mat Sub Matter Collected 633 | 162 117 354 Remotely . | . . . Salvage Created 1046 | . 377 669 Parts 71 | . 20 51 Haulers Intercepted . | . . . Recyclers Shooed 1 | . 1 . Parts Field Recycled . | . . . Retrieved Matter . | . . . Parts Self-Destructed 18 | . . 18 Prevented . | . . . Kills | -11 -10 -10 ------- Run | Yrd Mat Sub Combat Hostiles Destroyed 29 | . 12 17 Guns 14 | . 7 7 Cannons 7 | . . 7 AOE 8 | . 5 3 Classes Destroyed 5 | . 4 1 Worker 1 | . 1 . Recycler 1 | . 1 . Swarmer 7 | . 6 1 Grunt 7 | . 6 1 Subdweller 15 | . . 15 Best Kill Streak 6 | . 6 2 Combat Bots Only 5 | . 5 2 Max Kills in Single Turn 2 | . 2 2 Gunslinging . | . . . Exploded 2 | . 2 2 Melee . | . . . Uniques/NPCs Destroyed . | . . . Combat | -11 -10 -10 -------- Run | Yrd Mat Sub Hostile Shots Fired 137 | . 40 97 Missed 49 | . 13 36 Hits 88 | . 27 61 Projectile 88 | . 27 61 Critical Strikes 1 | . 1 . Damage Taken 1590 | . 366 1224 Core 275 | . 63 212 Absorbed by Shields . | . . . Core Remaining (%) 100 | 100 . . Volleys Fired 147 | . 37 110 Largest 2 | . 2 2 Hottest 120 | . 60 120 Shots Fired 213 | . 62 151 Gun 161 | . 53 108 Cannon 33 | . . 33 Launcher 19 | . 9 10 Special . | . . . Kinetic 69 | . 28 41 Thermal 125 | . 25 100 Explosive 19 | . 9 10 Electromagnetic . | . . . Robot Hit Streak 31 | . 11 31 Robot Miss Streak 2 | . 2 2 Penetration Max . | . . . Secondary Targets . | . . . Shots Hit Robots 160 | . 42 118 Core Hits 68 | . 27 41 Critical Kills . | . . . Critical Parts Destroyed 1 | . . 1 Critical Strikes 2 | . . 2 Destroy 2 | . . 2 Melee Attacks . | . . . Impact . | . . . Slashing . | . . . Piercing . | . . . Sneak Attacks . | . . . Combat Hostiles . | . . . Follow-up Attacks . | . . . Damage Inflicted 2821 | . 641 2180 Guns 1404 | . 320 1084 Cannons 472 | . . 472 Explosions 945 | . 321 624 Melee . | . . . Ramming . | . . . Kinetic 616 | . 161 455 Thermal 1260 | . 159 1101 Explosive 945 | . 321 624 Electromagnetic . | . . . Impact . | . . . Slashing . | . . . Piercing . | . . . Highest Corruption . | . . . Average Corruption . | . . . Corruption Purged . | . . . Corruption Blocked . | . . . Overload Shots . | . . . Overflow Damage 23 | . . 23 Projectiles 10 | . . 10 Explosions 13 | . . 13 Melee . | . . . Knockbacks . | . . . Impact . | . . . Kinetic . | . . . Secondary . | . . . Self-Inflicted Damage 77 | . 23 54 Shots 3 | . 1 2 Rammed . | . . . Targets Rammed . | . . . Kicked . | . . . Crushed . | . . . Highest Temperature 141 | . 141 1 Average Temperature 50 | . 51 1 Received Heat Transfer 390 | . 195 195 Siege Activations . | . . . Martial Activations . | . . . Shielding Activations . | . . . Robots Disrupted . | . . . Combat Hostiles . | . . . Robots Corrupted . | . . . Combat Hostiles . | . . . Parts Fried . | . . . Impact Corruptions . | . . . Robots Melted . | . . . Combat Hostiles . | . . . Parts Melted 1 | . . 1 Heat Transferred 2493 | . 375 2118 Parts Sabotaged . | . . . Parts Stolen . | . . . Parts Stripped . | . . . Power Chain Reactions . | . . . Alert | -11 -10 -10 ------- Run | Yrd Mat Sub Maximum Alert Level . | . . . Low Security (%) 100 | 100 100 . Level 1 . | . . . Level 2 . | . . . Level 3 . | . . . Level 4 . | . . . Level 5 . | . . . High Security . | . . . Max Security . | . . . Peak Influence 197 | . 197 . Initial . | . . . Average 43 | . 47 . Influence Increases 522 | . 437 85 Destroy 0b10 Robot/C 280 | . 240 40 Destroy 0b10 Robot/NC 10 | . 10 . Destroy Leader 50 | . 50 . Successful Hack 14 | . 14 . Disable Machine 30 | . 30 . Destroy Structure 33 | . 33 . Partial Spotted 15 | . 15 . Lose Combat Pursuer 90 | . 45 45 Influence Decreases 512 | . 256 256 Entered New Map 88 | . . 88 Time Decay 364 | . 246 118 Lost Part 60 | . 10 50 Squads Dispatched 1 | . 1 . Investigation . | . . . Extermination . | . . . Reinforcement 1 | . 1 . Assault . | . . . Garrison . | . . . Intercept . | . . . Searches Triggered . | . . . Construction Impeded . | . . . Haulers Reinforced . | . . . Active Scanning Responses . | . . . Cargo Convoy Interrupts . | . . . Stealth | -11 -10 -10 --------- Run | Yrd Mat Sub Distress Signals 1 | . 1 . Communications Jammed . | . . . Distress Signals . | . . . Times Spotted 47 | . 25 22 Peak Tracking Total 7 | . 7 4 Tactical Retreats 4 | . 2 2 Traps | -11 -10 -10 ------- Run | Yrd Mat Sub Traps Triggered . | . . . Indirectly . | . . . Trap Hack Attempts . | . . . Triggered . | . . . Disarmed . | . . . Reprogrammed . | . . . Reused . | . . . Traps Extracted . | . . . Installed . | . . . Triggered . | . . . Machines | -11 -10 -10 ---------- Run | Yrd Mat Sub Machines Disabled 2 | . 2 . Max in Single Turn 1 | . 1 . Machines Repaired . | . . . Machines Dismantled . | . . . Machines Sabotaged . | . . . Overloaded Fab Kills . | . . . Hacking | -11 -10 -10 --------- Run | Yrd Mat Sub Machines Accessed 2 | . 2 . Terminals 2 | . 2 . Fabricators . | . . . Repair Stations . | . . . Recycling Units . | . . . Scanalyzers . | . . . Garrison Access . | . . . Total Hacks 10 | . 10 . Successful 2 | . 2 . Failed 8 | . 8 . Catastrophic 2 | . 2 . Database Lockouts . | . . . Manual 10 | . 10 . Terminals 10 | . 10 . Fabricators . | . . . Repair Stations . | . . . Recycling Units . | . . . Scanalyzers . | . . . Garrison Access . | . . . Terminal Hacks 2 | . 2 . Part Schematic 2 | . 2 . Fabricator Hacks . | . . . Repair Station Hacks . | . . . Recycling Unit Hacks . | . . . Scanalyzer . | . . . Garrison Access Hacks . | . . . Unauthorized Hacks . | . . . Terminals . | . . . Fabricators . | . . . Repair Stations . | . . . Recycling Units . | . . . Scanalyzers . | . . . Garrison Access . | . . . Data Cores Recovered . | . . . Used . | . . . Hacking Detections 2 | . 2 . Full Trace Events 1 | . 1 . Feedback Events . | . . . Feedback Blocked . | . . . Robot Schematics Acquired . | . . . Robots Built . | . . . Authchips . | . . . Time . | . . . Total Robot Build Rating . | . . . Part Schematics Acquired 2 | . 2 . Parts Built . | . . . Authchips . | . . . Time . | . . . Total Part Build Rating . | . . . Parts Repaired . | . . . Time . | . . . Parts Recycled . | . . . Recycled Matter . | . . . Retrieved Matter . | . . . Retrieved Components . | . . . Parts Scanalyzed . | . . . Part Schematics Acquired . | . . . Parts Damaged . | . . . Bothacking | -11 -10 -10 ------------ Run | Yrd Mat Sub Used RIF Installer . | . . . Robots Hacked . | . . . Non-combat . | . . . Combat . | . . . Robot Hacks Applied . | . . . Relay Couplers Released . | . . . Fabnet Peak Effective % . | . . . Robots Rewired . | . . . Allies Hacked . | . . . Hacks Repelled . | . . . Allies | -11 -10 -10 -------- Run | Yrd Mat Sub Total Allies . | . . . Largest Group . | . . . Highest-Rated Group . | . . . Highest-Rated Ally . | . . . Total Orders . | . . . Ally Attacks . | . . . Total Damage . | . . . Kills . | . . . Allies Corrupted . | . . . Allies Melted . | . . . Intel | -11 -10 -10 ------- Run | Yrd Mat Sub Active Infowar (turns) . | . . . Robot Analysis Total . | . . . Derelict Logs Recovered 1 | . . 1 Drone Launches . | . . . Drone Recoveries . | . . . Exploration | -11 -10 -10 ------------- Run | Yrd Mat Sub Turns Passed 6652 | 76 726 5850 Spaces Moved 1469 | 44 379 1046 Core 8 | 8 . . Treads 1461 | 36 379 1046 Legs . | . . . Wheels . | . . . Hover . | . . . Flight . | . . . Fastest Speed 50 | 50 160 160 Average Speed 419 | 145 160 525 Slowest Speed 560 | 160 160 560 Overloaded Moves . | . . . Propulsion Burnouts . | . . . Robots Hopped . | . . . Potential Cave-ins . | . . . Cave-ins Triggered . | . . . Exploration Rate (%) 43 | 4 68 58 Regions Visited 2 Branch Regions 1 Pre-discovered Areas 1 | . . 1 Known Exits Taken . | . . . Unknown Exits Taken 2 | 1 1 . Scrap Searched 8 | . . 8 Spaces Dug 3 | . . 3 Terrain Destroyed 95 | . 48 47 Melee . | . . . Projectile 4 | . . 4 AOE 91 | . 48 43 Terrain Rammed . | . . . Walls Destroyed . | . . . Machines Disabled . | . . . Actions | -11 -10 -10 --------- Run | Yrd Mat Sub Total 1751 | 54 441 1256 Wait 59 | . 18 41 Move 1467 | 43 378 1046 Hop . | . . . Pick Up 51 | 5 5 41 Fast Attach 8 | 5 1 2 Attach 7 | 1 1 5 Detach . | . . . Swap 3 | . 1 2 Drop 9 | . . 9 Fire 147 | . 37 110 Melee . | . . . Ram . | . . . Kick . | . . . Crush . | . . . Escape Stasis . | . . . Rewire . | . . . Trap . | . . . Miscellaneous . | . . . Route ------- -11/Scrapyard -10/Materials (discovered 3 exits: [*Mat] / [*Min] / [*Sub]) -10/Subcaves (discovered 1 exit: [*Rec]) History --------- Turn | Location | Event 10 | -11/Scrapyard | Discovered new exit (range 15) 77 | -11/Scrapyard | Entered Materials 178 | -10/Materials | Discovered new exit (range 10) 306 | -10/Materials | Build established: Mutant 331 | -10/Materials | Discovered new exit (range 15) 579 | -10/Materials | Discovered new exit (range 8) 803 | -10/Materials | Entered Subcaves 1446 | -10/Subcaves | Build established: Hauler-Mutant 2964 | -10/Subcaves | Shifting Twisted Machinery released Riot Gun 3027 | -10/Subcaves | Shifting Twisted Machinery released Slug Cannon 3047 | -10/Subcaves | Learned location of Zion (-6) 3599 | -10/Subcaves | Discovered new exit (range 14) 3601 | -10/Subcaves | Core integrity fell below 50% 4516 | -10/Subcaves | A swath of the cavern ceiling suddenly collapsed 5291 | -10/Subcaves | Shifting Twisted Machinery released Sub. Power Source 5390 | -10/Subcaves | Shifting Twisted Machinery released Sub. Monowheel 6648 | -10/Subcaves | Core integrity fell below 20% 6653 | -10/Subcaves | Destroyed by G0-DM3(R) with Subdweller Beam Cannon Last Messages --------------- 05086_ QT-3R7(R) destroyed. 05161_ Subatomizers dissect the Sub. Optics. Sub. Power Source falls loose from the Twisted Machinery. Sub. Monowheel falls loose from the Twisted Machinery. 05934_ Sub. Machine Gun destroyed. 05936_ FR-05O(R) destroyed. 05943_ Subatomizers dissect the Sub. Machine Gun. 05948_ DO-KZX(R) destroyed. 05954_ Subatomizers dissect the Sub. Machine Gun. 05984_ Acquired Sub. Machine Gun. 05985_ Acquired 24 matter. 05991_ Acquired 4 matter. 06004_ Subatomizers dissect the Disposable Heat Sink. 06025_ Subatomizers dissect the Sub. Monowheel. 06193_ Dropped Scrap Shield Fragment. 06199_ Acquired Mak. Spear. 06240_ Subatomizers dissect the Disposable Heat Sink. 06251_ Subatomizers dissect the Disposable Heat Sink, destroying it. 06284_ Dropped Scrap Shield Fragment. 06285_ Acquired Scrap Shield. Map ----- +----------------------------------------------------+ | ?### ### [ #?????????????????????????????????? | | ## ### #?????????????????????????????????? | | # & # ## #####??????????????????????????????? | | #& # ## ## #??????????????????????????????? | | # # ##??????###?????????????????????? | | #" % & ###??### ##????????????????????? | | ## &%& "# # #### #????????????????????? | | # %& & ##### ##????????????????????? | | ## ### ####### ##?????????????????????? | | ?## ##?###?# ## ##??????????????????????? | | ??# #?????## ##???????????????????????? | | ??# ######## ### #????????????????????????? | | ??##### ## ####?## #????????????????????????? | | ??#### #?????# #???????????????????????? | | ?## ####?????### #???????????????????????? | | ## #########??## #???????????????????????? | | # ## ##???##???????????????????????? | | # #????????????????????????????? | | # ### #??######????????????????????? | | # ### ### #### #????????????????????? | | # ### ### ## #????????????????????? | | ## ## ### #??????????????# ?????? | | ?# ##### ## #??????????????? ????? | | ?# #?## ##### ##??????????????? "???? | | ?# #?# ###### ##?????????????? " ??? | | ?# ##?# #### @;#?????????????# "" ??? | | ?## #### #?## #????????????? "" ?? | | ??### #??# #???????????? " ## | | ????## ###?? ???????????? " # | | ?????# #### #???# & ??????????????# | | ##???# ##??# #???## &% ;R#?????????????# " | | # ##?# ####### #????### ##?????????????# #" | | # #?####?# ## #??????? ???????????????## | | # #??##### #??????? ?????????????????? | | # #### ##?????? ??????????""????? | | # ##" #??#### % ## ???????????# ?### | | ## ##"""""" #??# #?# ????????? #" #"# | | ?# ###" " ##??# ##??# ????????#"" " | | ?# ##"" " ##??## #?????????????# """" | | ?# ##""""####??## #??????????????#### | | ?# """"#????## ######????????????### | | ?# =""#????# ### #??????????###?? | | ?# ## ##????# #?# ############ ##? | | ?## ## ####### * #??# # ## #? | | ??#### ##""" "" ###?# ## | | ?????# " """ ### | | ?????# "### ## #### # | | ?????# ##?# % ######??#### | | ?????# ##??#### #??????????## | | ?????### ## #??????## #???????????## | +----------------------------------------------------+ Best States ------------- Heat Dissipation 39 Energy Generation 15 Energy Capacity 250 Matter Stores 300 Matter Capacity 300 Sight Range 16 Terrain Scan Density 10 Evasion (%) 40 Recoil Reduction 2 Item Schematics ----------------- Hcp. Storage Unit | -10/Materials | Hacked Lrg. Storage Unit | -10/Materials | Hacked Robot Schematics ------------------ None Fabricated ------------ Nothing Repaired ---------- Nothing Alien Tech Used ----------------- None Achievements -------------- None Challenges ------------ None Game ------ Seed PortableMetafieldJetlance Manual? 0 Play Time 00:10:44 Cumulative 247.9 hours Start 2025.05.09 @ 16:26:19 End 2025.05.09 @ 16:36:44 Sessions 1 Manual Loads 0 Difficulty Rogue Special Mode None Game No. 163 Rogue 163 Adventurer 0 Explorer 0 Win Type - Total 13 Types 6/0/5/1/0/0/0/1/0/0 Lore% 76 Gallery% 70 Achievement% 73 Wizard Run 0 Options --------- Layout 0 ASCII 0 Keyboard 0 Movement Mouse Keybinds 0 Fullscreen 2 Font 24/Smallcaps Map View 76x50 Zoom Use 0% Tactical HUD 1 Map Filters NONE Filters NONE Steam 1 RUN: f866ac96-4990-44c9-a6dc-7357dceccc03